lending/lending_fUSD_20240219
["ID","MTS","AMOUNT","RATE_DAILY","PERIOD"]
[314465473,1708368670258,-500.0,0.00047123,30]
[314465474,1708368670268,-500.0,0.00047123,30]
[314465475,1708368670279,-500.0,0.00047123,30]
[314465476,1708368670289,-782.95,0.00047123,30]
[314465477,1708368670299,-500.0,0.00047123,30]
[314465478,1708368670310,-500.0,0.00047123,30]
[314465479,1708368670320,-808.22,0.00047123,30]
[314465480,1708368670330,-500.0,0.00047123,30]
[314465481,1708368670340,-635.71,0.00047123,30]
[314465482,1708368670350,-223.03955303,0.00047123,30]
[314465483,1708368670360,-500.0,0.00047123,30]
[314465484,1708368670369,-982.5,0.00047123,30]
[314465485,1708368670379,-500.0,0.00047123,30]
[314465486,1708368670389,-519.26477702,0.00047123,30]
[314465487,1708368670399,-500.0,0.00047123,30]
[314465488,1708368670408,-500.0,0.00047123,30]
[314465489,1708368670420,-500.0,0.00047123,30]
[314465490,1708368670430,-638.02,0.00047123,30]
[314465491,1708368670440,-882.05,0.00047123,30]
[314465492,1708368670450,-559.02,0.00047123,30]
[314465493,1708368670459,-500.0,0.00047123,30]
[314465494,1708368670469,-500.0,0.00047123,30]
[314465495,1708368670479,-797.72,0.00047123,30]
[314465496,1708368670489,-857.59,0.00047123,30]
[314465497,1708368670503,-500.0,0.00047123,30]
[314465498,1708368670513,-500.0,0.00047123,30]
[314465499,1708368670523,-500.0,0.00047123,30]
[314465500,1708368670534,-500.0,0.00047123,30]
[314465501,1708368670543,-500.0,0.00047123,30]
[314465502,1708368670553,-500.0,0.00047123,30]
[314465503,1708368670564,-500.0,0.00047123,30]
[314465504,1708368670575,-500.0,0.00047123,30]
[314465505,1708368670585,-839.61,0.00047123,30]
[314465506,1708368670596,-500.0,0.00047123,30]
[314465507,1708368670606,-500.0,0.00047123,30]
[314465508,1708368670617,-500.0,0.00047123,30]
[314465509,1708368670627,-500.0,0.00047123,30]
[314465510,1708368670638,-500.0,0.00047123,30]
[314465511,1708368670648,-541.29,0.00047123,30]
[314465512,1708368670658,-821.18,0.00047123,30]
[314465513,1708368670669,-380.9843798,0.00047123,30]
[314465514,1708368670679,-500.0,0.00047123,30]
[314465515,1708368670689,-908.51,0.00047123,30]
[314465516,1708368670699,-506.77,0.00047123,30]
[314465517,1708368670709,-500.0,0.00047123,30]
[314465518,1708368670719,-500.0,0.00047123,30]
[314465519,1708368670729,-1202.54,0.00047123,30]
[314465520,1708368670739,-832.18,0.00047123,30]
[314465521,1708368670753,-500.0,0.00047123,30]
[314465522,1708368670763,-749.86,0.00047123,30]
[314465523,1708368670774,-500.0,0.00047123,30]
[314465524,1708368670784,-364.76337778,0.00047123,30]
[314465525,1708368670795,-692.69,0.00047123,30]
[314465526,1708368670805,-500.0,0.00047123,30]
[314465527,1708368670816,-500.0,0.00047123,30]
[314465528,1708368670827,-509.60373897,0.00047123,30]
[314465529,1708368670838,-583.47,0.00047123,30]
[314465530,1708368670849,-963.02,0.00047123,30]
[314465531,1708368670859,-500.0,0.00047123,30]
[314465532,1708368670869,-500.0,0.00047123,30]
[314465533,1708368670880,-1000.0,0.00047123,7]
[314465534,1708368670890,-500.0,0.00047123,30]
[314465535,1708368670901,-500.0,0.00047123,30]
[314465536,1708368670911,-500.0,0.00047123,30]
[314465537,1708368670921,-500.0,0.00047123,30]
[314465538,1708368670931,-500.0,0.00047123,30]
[314465539,1708368670941,-500.0,0.00047123,30]
[314465540,1708368670951,-500.0,0.00047123,30]
[314465541,1708368670960,-604.89,0.00047123,30]
[314465542,1708368670971,-500.0,0.00047123,7]
[314465543,1708368670980,-762.37,0.00047123,30]
[314465544,1708368670989,-774.78,0.00047123,30]
[314465545,1708368671004,-500.0,0.00047123,30]
[314465546,1708368671013,-500.0,0.00047123,30]
[314465547,1708368671023,-500.0,0.00047123,30]
[314465548,1708368671033,-569.35,0.00047123,30]
[314465549,1708368671044,-500.0,0.00047123,30]
[314465550,1708368671055,-500.0,0.00047123,30]
[314465551,1708368671066,-873.98,0.00047123,30]
[314465552,1708368671076,-500.0,0.00047123,30]
[314465553,1708368671086,-500.0,0.00047123,30]
[314465554,1708368671096,-500.0,0.00047123,30]
[314465555,1708368671105,-718.47,0.00047123,30]
[314465556,1708368671115,-500.0,0.00047123,30]
[314465557,1708368671125,-705.46,0.00047123,30]
[314465558,1708368671135,-500.0,0.00047123,30]
[314465559,1708368671145,-570.87,0.00047123,30]
[314465560,1708368671156,-404.47261126,0.00047123,30]
[314465561,1708368671165,-500.0,0.00047123,30]
[314465562,1708368671175,-500.0,0.00047123,30]
[314465563,1708368671185,-776.31,0.00047123,30]
[314465564,1708368671195,-607.54,0.00047123,30]
[314465565,1708368671205,-500.0,0.00047123,2]
[314465566,1708368671214,-500.0,0.00047123,30]
[314465567,1708368671225,-500.0,0.00047123,30]
[314465568,1708368671235,-700.1,0.00047123,30]
[314465569,1708368671247,-500.0,0.00047123,30]
[314465570,1708368671256,-507.93,0.00047123,30]
[314465571,1708368671267,-500.0,0.00047123,30]
[314465572,1708368671277,-500.0,0.00047123,30]
[314465573,1708368671287,-500.0,0.00047123,30]
[314465574,1708368671298,-844.56,0.00047123,30]
[314465575,1708368671307,-500.0,0.00047123,30]
[314465576,1708368671317,-500.0,0.00047123,30]
[314465577,1708368671327,-500.0,0.00047123,30]
[314465578,1708368671337,-500.0,0.00047123,30]
[314465579,1708368671347,-500.0,0.00047123,30]
[314465580,1708368671356,-922.75,0.00047123,30]
[314465581,1708368671367,-700.59,0.00047123,30]
[314465582,1708368671377,-500.0,0.00047123,30]
[314465583,1708368671387,-500.0,0.00047123,30]
[314465584,1708368671396,-500.0,0.00047123,30]
[314465585,1708368671419,-565.13,0.00047123,30]
[314465586,1708368671431,-852.32,0.00047123,30]
[314465587,1708368671441,-500.0,0.00047123,30]
[314465588,1708368671452,-183.55929145,0.00047123,30]
[314465589,1708368671462,-500.0,0.00047123,30]
[314465590,1708368671472,-1633.83,0.00047123,30]
[314465591,1708368671483,-500.0,0.00047123,30]
[314465592,1708368671494,-624.86,0.00047123,30]
[314465593,1708368671505,-500.0,0.00047123,30]
[314465594,1708368671516,-500.0,0.00047123,30]
[314465595,1708368671526,-606.18473784,0.00047123,30]
[314465596,1708368671536,-500.0,0.00047123,30]
[314465597,1708368671546,-968.85,0.00047123,30]
[314465598,1708368671556,-681.41,0.00047123,30]
[314465599,1708368671566,-500.0,0.00047123,30]
[314465600,1708368671577,-500.0,0.00047123,30]
[314465601,1708368671587,-2749.08,0.00047123,30]
[314465602,1708368671598,-500.0,0.00047123,30]
[314465603,1708368671608,-500.0,0.00047123,30]
[314465604,1708368671618,-500.0,0.00047123,30]
[314465605,1708368671629,-507.11009099,0.00047123,30]
[314465606,1708368671640,-500.0,0.00047123,30]
[314465607,1708368671651,-500.0,0.00047123,30]
[314465608,1708368671661,-514.57,0.00047123,30]
[314465609,1708368671671,-1193.23,0.00047123,30]
[314465610,1708368671681,-500.0,0.00047123,30]
[314465611,1708368671692,-500.0,0.00047123,30]
[314465612,1708368671703,-500.0,0.00047123,30]
[314465613,1708368671713,-500.0,0.00047123,30]
[314465614,1708368671723,-500.0,0.00047123,30]
[314465615,1708368671733,-788.3,0.00047123,30]
[314465616,1708368671744,-500.0,0.00047123,30]
[314465617,1708368671754,-500.0,0.00047123,30]
[314465618,1708368671764,-500.0,0.00047123,30]
[314465619,1708368671775,-759.41,0.00047123,30]
[314465620,1708368671785,-1897.02,0.00047123,30]
[314465621,1708368671795,-959.63,0.00047123,30]
[314465622,1708368671806,-774.5,0.00047123,30]
[314465623,1708368671816,-728.15,0.00047123,30]
[314465624,1708368671826,-500.0,0.00047123,30]
[314465625,1708368671836,-695.7,0.00047123,30]
[314465626,1708368671845,-500.0,0.00047123,30]
[314465627,1708368671855,-591.83,0.00047123,30]
[314465628,1708368671865,-1002.89,0.00047123,30]
[314465629,1708368671874,-2303.4,0.00047123,30]
[314465630,1708368671884,-500.0,0.00047123,30]
[314465631,1708368671894,-616.96,0.00047123,30]
[314465632,1708368671904,-500.0,0.00047123,30]
[314465633,1708368671915,-500.0,0.00047123,30]
[314465634,1708368671925,-667.62,0.00047123,30]
[314465635,1708368671935,-656.24,0.00047123,30]
[314465636,1708368671945,-500.0,0.00047123,30]
[314465637,1708368671955,-1370.62,0.00047123,30]
[314465638,1708368671965,-1953.3,0.00047123,30]
[314465639,1708368671975,-500.0,0.00047123,30]
[314465640,1708368671985,-500.0,0.00047123,30]
[314465641,1708368671998,-993.04,0.00047123,30]
[314465642,1708368672008,-500.0,0.00047123,30]
[314465643,1708368672018,-500.0,0.00047123,30]
[314465644,1708368672028,-500.0,0.00047123,30]
[314465645,1708368672039,-2363.16,0.00047123,30]
[314465646,1708368672050,-731.75,0.00047123,30]
[314465647,1708368672060,-511.68,0.00047123,30]
[314465648,1708368672071,-838.61,0.00047123,30]
[314465649,1708368672082,-500.0,0.00047123,30]
[314465650,1708368672093,-500.0,0.00047123,30]
[314465651,1708368672103,-574.99,0.00047123,30]
[314465652,1708368672113,-878.47,0.00047123,30]
[314465653,1708368672125,-500.0,0.00047123,30]
[314465654,1708368672135,-500.0,0.00047123,2]
[314465655,1708368672144,-856.47,0.00047123,30]
[314465656,1708368672154,-500.0,0.00047123,30]
[314465657,1708368672163,-500.0,0.00047123,30]
[314465658,1708368672173,-500.0,0.00047123,30]
[314465659,1708368672183,-500.0,0.00047123,30]
[314465660,1708368672192,-500.0,0.00047123,30]
[314465661,1708368672202,-500.0,0.00047123,30]
[314465662,1708368672212,-500.0,0.00047123,30]
[314465663,1708368672222,-500.0,0.00047123,30]
[314465664,1708368672232,-500.0,0.00047123,30]
[314465665,1708368672243,-1051.99,0.00047123,30]
[314465666,1708368672253,-500.0,0.00047123,30]
[314465667,1708368672262,-500.0,0.00047123,30]
[314465668,1708368672272,-500.0,0.00047123,30]
[314465669,1708368672282,-653.29,0.00047123,30]
[314465670,1708368672292,-865.45,0.00047123,30]
[314465671,1708368672301,-500.0,0.00047123,30]
[314465672,1708368672311,-500.0,0.00047123,30]
[314465673,1708368672321,-579.34,0.00047123,30]
[314465674,1708368672331,-500.0,0.00047123,30]
[314465675,1708368672341,-420.91087758,0.00047123,30]
[314465676,1708368672352,-500.0,0.00047123,30]
[314465677,1708368672362,-500.0,0.00047123,30]
[314465678,1708368672371,-1080.33,0.00047123,30]
[314465679,1708368672382,-187.5,0.00047123,120]
[314465680,1708368672391,-500.0,0.00047123,30]
[314465681,1708368672401,-886.97,0.00047123,30]
[314465682,1708368672412,-431.79795931,0.00047123,30]
[314465683,1708368672422,-500.0,0.00047123,30]
[314465684,1708368672433,-500.0,0.00047123,30]
[314465685,1708368672444,-500.0,0.00047123,30]
[314465686,1708368672453,-506.91,0.00047123,30]
[314465687,1708368672464,-932.3,0.00047123,30]
[314465688,1708368672473,-1000.0,0.00047123,7]
[314465689,1708368672483,-872.65,0.00047123,30]
[314465690,1708368672494,-500.0,0.00047123,30]
[314465691,1708368672504,-500.0,0.00047123,30]
[314465692,1708368672515,-583.29799934,0.00047123,30]
[314465693,1708368672525,-500.0,0.00047123,30]
[314465694,1708368672535,-608.78,0.00047123,2]
[314465695,1708368672545,-552.08,0.00047123,30]
[314465696,1708368672555,-500.0,0.00047123,30]
[314465697,1708368672565,-500.0,0.00047123,30]
[314465698,1708368672575,-500.0,0.00047123,30]
[314465699,1708368672585,-500.0,0.00047123,30]
[314465700,1708368672596,-500.0,0.00047123,30]
[314465701,1708368672606,-975.9,0.00047123,30]
[314465702,1708368672616,-500.0,0.00047123,30]
[314465703,1708368672627,-500.0,0.00047123,30]
[314465704,1708368672641,-500.0,0.00047123,30]
[314465705,1708368672652,-692.97,0.00047123,30]
[314465706,1708368672662,-1172.94,0.00047123,30]
[314465707,1708368672674,-500.0,0.00047123,30]
[314465708,1708368672684,-1027.4,0.00047123,30]
[314465709,1708368672695,-634.19,0.00047123,30]
[314465710,1708368672706,-500.0,0.00047123,30]
[314465711,1708368672717,-953.8,0.00047123,30]
[314465712,1708368672728,-500.0,0.00047123,30]
[314465713,1708368672738,-500.0,0.00047123,30]
[314465714,1708368672749,-424.01369156,0.00047123,30]
[314465715,1708368672760,-500.0,0.00047123,30]
[314465716,1708368672771,-1332.29,0.00047123,30]
[314465717,1708368672782,-500.0,0.00047123,30]
[314465718,1708368672793,-500.0,0.00047123,30]
[314465719,1708368672802,-1821.58,0.00047123,30]
[314465720,1708368672812,-500.0,0.00047123,30]
[314465721,1708368672822,-500.0,0.00047123,30]
[314465722,1708368672831,-834.88,0.00047123,30]
[314465723,1708368672841,-595.56,0.00047123,30]
[314465724,1708368672851,-721.89,0.00047123,30]
[314465725,1708368672860,-500.0,0.00047123,30]
[314465726,1708368672870,-1691.82,0.00047123,30]
[314465727,1708368672880,-500.0,0.00047123,30]
[314465728,1708368672889,-500.0,0.00047123,30]
[314465729,1708368672899,-776.62,0.00047123,30]
[314465730,1708368672910,-500.0,0.00047123,30]
[314465731,1708368672919,-500.0,0.00047123,30]
[314465732,1708368672929,-2325.88,0.00047123,30]
[314465733,1708368672939,-510.45504166,0.00047123,30]
[314465734,1708368672949,-542.42,0.00047123,30]
[314465735,1708368672959,-515.23600905,0.00047123,30]
[314465736,1708368672969,-500.0,0.00047123,30]
[314465737,1708368672979,-500.0,0.00047123,30]
[314465738,1708368672989,-727.95,0.00047123,30]
[314465739,1708368672999,-767.32,0.00047123,30]
[314465740,1708368673010,-2218.71,0.00047123,30]
[314465741,1708368673021,-500.0,0.00047123,30]
[314465742,1708368673031,-500.0,0.00047123,30]
[314465743,1708368673044,-500.0,0.00047123,30]
[314465744,1708368673055,-1241.04,0.00047123,30]
[314465745,1708368673066,-500.0,0.00047123,30]
[314465746,1708368673077,-500.0,0.00047123,30]
[314465747,1708368673088,-879.92,0.00047123,30]
[314465748,1708368673099,-500.0,0.00047123,30]
[314465749,1708368673110,-500.0,0.00047123,30]
[314465750,1708368673121,-500.0,0.00047123,30]
[314465751,1708368673132,-500.0,0.00047123,30]
[314465752,1708368673143,-809.49,0.00047123,30]
[314465753,1708368673153,-1201.08,0.00047123,30]
[314465754,1708368673164,-500.0,0.00047123,30]
[314465755,1708368673175,-500.0,0.00047123,30]
[314465756,1708368673185,-1945.84,0.00047123,30]
[314465757,1708368673196,-500.0,0.00047123,30]
[314465758,1708368673206,-500.0,0.00047123,30]
[314465759,1708368673217,-500.0,0.00047123,30]
[314465760,1708368673228,-500.0,0.00047123,30]
[314465761,1708368673239,-500.0,0.00047123,30]
[314465762,1708368673256,-734.92,0.00047123,30]
[314465763,1708368673267,-8336.83,0.00047123,30]
[314465764,1708368673284,-2407.85,0.00047123,30]
[314465765,1708368673294,-500.0,0.00047123,30]
[314465766,1708368673305,-503.0,0.00047123,30]
[314465767,1708368673315,-500.0,0.00047123,30]
[314465768,1708368673326,-500.0,0.00047123,30]
[314465769,1708368673336,-500.0,0.00047123,30]
[314465770,1708368673346,-500.0,0.00047123,30]
[314465771,1708368673356,-500.0,0.00047123,30]
[314465772,1708368673367,-500.0,0.00047123,30]
[314465773,1708368673378,-500.0,0.00047123,30]
[314465774,1708368673388,-782.99,0.00047123,30]
[314465775,1708368673399,-1574.66,0.00047123,30]
[314465776,1708368673409,-2196.04,0.00047123,30]
[314465777,1708368673422,-374.72,0.00047123,30]
[314465778,1708368673432,-500.0,0.00047123,30]
[314465779,1708368673443,-904.27,0.00047123,30]
[314465780,1708368673456,-500.0,0.00047123,30]
[314465781,1708368673467,-500.0,0.00047123,30]
[314465782,1708368673484,-500.0,0.00047123,30]
[314465783,1708368673494,-1250.14,0.00047123,30]
[314465784,1708368673509,-500.0,0.00047123,30]
[314465785,1708368673519,-579.16,0.00047123,30]
[314465786,1708368673530,-716.18,0.00047123,30]
[314465787,1708368673542,-5136.62,0.00047123,30]
[314465788,1708368673552,-1860.24,0.00047123,30]
[314465789,1708368673564,-2296.53,0.00047123,30]
[314465790,1708368673574,-500.0,0.00047123,30]
[314465791,1708368673584,-500.0,0.00047123,30]
[314465792,1708368673601,-575.6,0.00047123,30]
[314465793,1708368673612,-500.0,0.00047123,30]
[314465794,1708368673623,-500.0,0.00047123,30]
[314465795,1708368673633,-52.93281644,0.00047123,30]
[314465796,1708368674213,-447.06718356,0.00047123,30]
[314465797,1708368674224,-500.0,0.00047123,30]
[314465798,1708368674235,-500.0,0.00047123,30]
[314465799,1708368674246,-500.0,0.00047123,30]
[314465800,1708368674256,-500.0,0.00047123,30]
[314465801,1708368674266,-1193.79,0.00047123,30]
[314465802,1708368674277,-2582.22,0.00047123,30]
[314465803,1708368674287,-500.0,0.00047123,30]
[314465804,1708368674297,-1663.17,0.00047123,30]
[314465805,1708368674307,-500.0,0.00047123,30]
[314465806,1708368674316,-500.0,0.00047123,30]
[314465807,1708368674326,-500.0,0.00047123,30]
[314465808,1708368674336,-1869.94501634,0.00047123,30]
[314465809,1708368675337,-2044.94261362,0.00038631,16]
[314465810,1708368675349,-287.63997523,0.00038631,16]
[314465811,1708368676175,-2364.241241,0.0003452,2]
[314465812,1708368676186,-3546.361861,0.00034794,2]
[314465813,1708368676196,-4728.482482,0.00034931,2]
[314465814,1708368676206,-5910.603103,0.00035068,2]
[314465815,1708368676217,-8274.844344,0.00035342,2]
[314465816,1708368676228,-807.08140027,0.00037211,2]
[314465817,1708368676238,-15535.50222447,0.00038631,16]
[314465818,1708368676251,-266.33700544,0.00038699,2]
[314465819,1708368676261,-560.42246104,0.00041448,34]
[314465820,1708368676272,-162.0,0.00045,90]
[314465821,1708368676283,-426.066745,0.00046575,30]
[314465822,1708368676293,-1968.84,0.00046575,30]
[314465823,1708368676304,-1863.27,0.00046575,30]
[314465824,1708368676315,-1116.27,0.00046575,30]
[314465825,1708368676325,-500.0,0.00046575,30]
[314465826,1708368676335,-500.0,0.00046575,30]
[314465827,1708368676345,-1863.27,0.00046849,30]
[314465828,1708368676356,-1968.84,0.00046849,30]
[314465829,1708368676366,-1116.27,0.00046849,30]
[314465830,1708368676377,-829.80498366,0.00047123,30]
[314465831,1708368676387,-500.0,0.00047123,30]
[314465832,1708368676398,-500.0,0.00047123,30]
[314465833,1708368676409,-500.0,0.00047123,30]
[314465834,1708368676419,-500.0,0.00047123,30]
[314465835,1708368676430,-500.0,0.00047123,30]
[314465836,1708368676440,-1233.49,0.00047123,30]
[314465837,1708368676450,-1807.88,0.00047123,30]
[314465838,1708368676459,-2570.88,0.00047123,30]
[314465839,1708368676469,-500.0,0.00047123,30]
[314465840,1708368676480,-642.64,0.00047123,30]
[314465841,1708368676490,-500.0,0.00047123,30]
[314465842,1708368676501,-2069.93,0.00047123,30]
[314465843,1708368676512,-500.0,0.00047123,30]
[314465844,1708368676522,-500.0,0.00047123,30]
[314465845,1708368676533,-1233.0,0.00047123,30]
[314465846,1708368676543,-500.0,0.00047123,30]
[314465847,1708368676554,-855.12,0.00047123,30]
[314465848,1708368676564,-597.55,0.00047123,30]
[314465849,1708368676574,-500.0,0.00047123,30]
[314465850,1708368676585,-1715.92,0.00047123,30]
[314465851,1708368676595,-500.0,0.00047123,30]
[314465852,1708368676605,-926.75,0.00047123,30]
[314465853,1708368676615,-500.0,0.00047123,30]
[314465854,1708368676625,-500.0,0.00047123,30]
[314465855,1708368676635,-2378.68,0.00047123,30]
[314465856,1708368676645,-3458.75,0.00047123,30]
[314465857,1708368676655,-500.0,0.00047123,30]
[314465858,1708368676665,-500.0,0.00047123,30]
[314465859,1708368676675,-734.17,0.00047123,30]
[314465860,1708368676685,-919.86,0.00047123,30]
[314465861,1708368676695,-1054.76,0.00047123,30]
[314465862,1708368676705,-2773.68,0.00047123,30]
[314465863,1708368676715,-1132.55,0.00047123,30]
[314465864,1708368676724,-505.21125071,0.00047123,30]
[314465865,1708368676735,-500.0,0.00047123,30]
[314465866,1708368676746,-627.5436314,0.00047123,30]
[314465867,1708368676757,-2204.57,0.00047123,30]
[314465868,1708368676768,-500.0,0.00047123,30]
[314465869,1708368676778,-1178.43,0.00047123,30]
[314465870,1708368676788,-500.0,0.00047123,30]
[314465871,1708368676799,-500.0,0.00047123,30]
[314465872,1708368676810,-2482.83,0.00047123,30]
[314465873,1708368676821,-959.71,0.00047123,30]
[314465874,1708368676831,-2643.7,0.00047123,30]
[314465875,1708368676842,-500.0,0.00047123,30]
[314465876,1708368676852,-500.0,0.00047123,30]
[314465877,1708368676862,-2146.58,0.00047123,30]
[314465878,1708368676873,-3035.21,0.00047123,30]
[314465879,1708368676883,-588.15,0.00047123,30]
[314465880,1708368676894,-1142.71,0.00047123,30]
[314465881,1708368676905,-3544.33,0.00047123,30]
[314465882,1708368676915,-2201.17,0.00047123,30]
[314465883,1708368676926,-500.0,0.00047123,30]
[314465884,1708368676936,-500.0,0.00047123,30]
[314465885,1708368676946,-500.0,0.00047123,30]
[314465886,1708368676956,-1017.55,0.00047123,30]
[314465887,1708368676967,-500.0,0.00047123,30]
[314465888,1708368676977,-500.0,0.00047123,30]
[314465889,1708368676987,-2111.83,0.00047123,30]
[314465890,1708368677000,-500.0,0.00047123,30]
[314465891,1708368677010,-500.0,0.00047123,30]
[314465892,1708368677020,-500.0,0.00047123,30]
[314465893,1708368677034,-3085.25,0.00047123,30]
[314465894,1708368677044,-500.0,0.00047123,30]
[314465895,1708368677054,-518.7181024,0.00047123,30]
[314465896,1708368677065,-5530.2,0.00047123,30]
[314465897,1708368677075,-500.0,0.00047123,30]
[314465898,1708368677085,-3482.75,0.00047123,30]
[314465899,1708368677095,-1036.78,0.00047123,30]
[314465900,1708368677104,-500.0,0.00047123,30]
[314465901,1708368677115,-1201.09,0.00047123,30]
[314465902,1708368677126,-500.0,0.00047123,30]
[314465903,1708368677137,-500.0,0.00047123,30]
[314465904,1708368677146,-500.0,0.00047123,30]
[314465905,1708368677156,-500.0,0.00047123,30]
[314465906,1708368677166,-500.0,0.00047123,30]
[314465907,1708368677176,-500.0,0.00047123,30]
[314465908,1708368677187,-500.0,0.00047123,30]
[314465909,1708368677197,-500.0,0.00047123,30]
[314465910,1708368677207,-2263.43,0.00047123,30]
[314465911,1708368677217,-3157.88,0.00047123,30]
[314465912,1708368677226,-500.0,0.00047123,30]
[314465913,1708368677237,-500.0,0.00047123,30]
[314465914,1708368677247,-500.0,0.00047123,30]
[314465915,1708368677257,-777.92,0.00047123,30]
[314465916,1708368677267,-2734.92,0.00047123,30]
[314465917,1708368677337,-500.0,0.00047123,30]
[314465918,1708368677347,-505.06,0.00047123,30]
[314465919,1708368677364,-551.4,0.00047123,30]
[314465920,1708368677374,-514.32689561,0.00047123,30]
[314465921,1708368677385,-500.0,0.00047123,30]
[314465922,1708368677395,-2116.31,0.00047123,30]
[314465923,1708368677405,-1328.42,0.00047123,30]
[314465924,1708368677416,-853.08,0.00047123,30]
[314465925,1708368677429,-1138.96,0.00047123,30]
[314465926,1708368677439,-1092.76,0.00047123,30]
[314465927,1708368677450,-500.0,0.00047123,30]
[314465928,1708368677467,-500.0,0.00047123,30]
[314465929,1708368677476,-500.0,0.00047123,30]
[314465930,1708368677486,-500.0,0.00047123,30]
[314465931,1708368677496,-500.0,0.00047123,30]
[314465932,1708368677506,-1906.31,0.00047123,30]
[314465933,1708368677516,-500.0,0.00047123,30]
[314465934,1708368677526,-500.0,0.00047123,30]
[314465935,1708368677536,-912.3,0.00047123,30]
[314465936,1708368677546,-500.0,0.00047123,30]
[314465937,1708368677556,-2950.25,0.00047123,30]
[314465938,1708368677566,-1276.86,0.00047123,30]
[314465939,1708368677576,-23686.09,0.00047123,30]
[314465940,1708368677586,-716.37,0.00047123,30]
[314465941,1708368677596,-1090.54,0.00047123,30]
[314465942,1708368677607,-500.0,0.00047123,30]
[314465943,1708368677618,-991.27,0.00047123,30]
[314465944,1708368677627,-814.35,0.00047123,30]
[314465945,1708368677637,-500.0,0.00047123,30]
[314465946,1708368677647,-500.0,0.00047123,30]
[314465947,1708368677656,-500.0,0.00047123,30]
[314465948,1708368677666,-500.0,0.00047123,30]
[314465949,1708368677677,-500.0,0.00047123,30]
[314465950,1708368677686,-500.0,0.00047123,30]
[314465951,1708368677696,-562.68,0.00047123,30]
[314465952,1708368677706,-2473.67,0.00047123,30]
[314465953,1708368677716,-1005.45,0.00047123,30]
[314465954,1708368677726,-500.0,0.00047123,30]
[314465955,1708368677736,-6347.01,0.00047123,30]
[314465956,1708368677747,-5744.4,0.00047123,30]
[314465957,1708368677757,-500.0,0.00047123,30]
[314465958,1708368677768,-635.12,0.00047123,30]
[314465959,1708368677778,-500.0,0.00047123,30]
[314465960,1708368677787,-500.0,0.00047123,30]
[314465961,1708368677798,-500.0,0.00047123,30]
[314465962,1708368677808,-1522.56,0.00047123,30]
[314465963,1708368677819,-2256.08,0.00047123,30]
[314465964,1708368677833,-509.56721566,0.00047123,30]
[314465965,1708368677843,-500.0,0.00047123,30]
[314465966,1708368677852,-500.0,0.00047123,30]
[314465967,1708368677862,-832.26,0.00047123,30]
[314465968,1708368677872,-500.0,0.00047123,30]
[314465969,1708368677882,-500.0,0.00047123,30]
[314465970,1708368677892,-500.0,0.00047123,30]
[314465971,1708368677902,-500.0,0.00047123,30]
[314465972,1708368677911,-500.0,0.00047123,30]